[Event "Titled Tuesday Blitz June 27 Early 2023"]
[White "Szente Varga, Fruzsina"]
[Black "Thecourseoisildur"]
[WhiteFideId "712264"]
[WhiteElo "2351"]
[BlackElo "2483"]
[Result "0-1"]
[Round "11"]
[TimeControl "180+2"]
[Date "2023.06.27"]
[WhiteClock "0:00:14"]
[BlackClock "0:01:49"]
[Board "95"]

1. e4 {[%clk 0:02:59]}  c5 {[%clk 0:02:56]} 2. Nf3 {[%clk 0:02:56]}  Nc6 {[%clk 0:02:57]} 3. Bb5 {[%clk 0:02:54]}  g6 {[%clk 0:02:55]} 4. Nc3 {[%clk 0:02:51]}  Bg7 {[%clk 0:02:55]} 5. O-O {[%clk 0:02:51]}  d6 {[%clk 0:02:50]} 6. d4 {[%clk 0:02:45]}  cxd4 {[%clk 0:02:37]} 7. Nxd4 {[%clk 0:02:46]}  Bd7 {[%clk 0:02:37]} 8. Nce2 {[%clk 0:02:28]}  Nxd4 {[%clk 0:02:34]} 9. Nxd4 {[%clk 0:02:19]}  Bxb5 {[%clk 0:02:33]} 10. Nxb5 {[%clk 0:02:18]}  Nf6 {[%clk 0:02:34]} 11. Re1 {[%clk 0:02:05]}  O-O {[%clk 0:02:32]} 12. Bg5 {[%clk 0:01:58]}  Rc8 {[%clk 0:02:30]} 13. c3 {[%clk 0:01:57]}  Qa5 {[%clk 0:02:25]} 14. Bxf6 {[%clk 0:01:20]}  Bxf6 {[%clk 0:02:26]} 15. Nd4 {[%clk 0:01:19]}  b5 {[%clk 0:02:24]} 16. Qb3 {[%clk 0:01:14]}  Bxd4 {[%clk 0:02:10]} 17. cxd4 {[%clk 0:01:14]}  Rc4 {[%clk 0:02:11]} 18. Rad1 {[%clk 0:01:09]}  Rxd4 {[%clk 0:02:09]} 19. h3 {[%clk 0:01:02]}  Rc8 {[%clk 0:02:05]} 20. Rc1 {[%clk 0:00:55]}  Rxc1 {[%clk 0:02:04]} 21. Rxc1 {[%clk 0:00:56]}  Rxe4 {[%clk 0:02:04]} 22. Kh2 {[%clk 0:00:36]}  Qd2 {[%clk 0:01:52]} 23. Rc8+ {[%clk 0:00:33]}  Kg7 {[%clk 0:01:52]} 24. Qxb5 {[%clk 0:00:20]}  Qf4+ {[%clk 0:01:49]} 25. g3 {[%clk 0:00:16]}  Qxf2+ {[%clk 0:01:48]} 26. Kh1 {[%clk 0:00:14]}  Re1+ {[%clk 0:01:49]} 0-1


[Site "https://www.chess.com"]

[Event "Titled Tuesday Blitz June 27 Early 2023"]
[White "Czerw, Dawid"]
[Black "Zampronha, Wladimir Camilo"]
[WhiteFideId "1145746"]
[BlackFideId "2103087"]
[WhiteElo "2466"]
[BlackElo "2269"]
[Result "0-1"]
[Round "11"]
[TimeControl "180+2"]
[Date "2023.06.27"]
[WhiteClock "0:03:01"]
[BlackClock "0:00:03"]
[Board "97"]

1. e4 {[%clk 0:03:00]}  c5 {[%clk 0:02:59]} 2. Nf3 {[%clk 0:03:01]}  e6 {[%clk 0:03:00]} 3. d4 {[%clk 0:03:02]}  cxd4 {[%clk 0:03:00]} 4. Nxd4 {[%clk 0:03:03]}  Nc6 {[%clk 0:03:00]} 5. Nc3 {[%clk 0:03:03]}  Qc7 {[%clk 0:03:01]} 6. Be3 {[%clk 0:03:04]}  a6 {[%clk 0:03:01]} 7. Qd2 {[%clk 0:03:05]}  b5 {[%clk 0:02:57]} 8. O-O-O {[%clk 0:03:05]}  Ne5 {[%clk 0:02:56]} 9. f4 {[%clk 0:03:04]}  Nc4 {[%clk 0:02:48]} 10. Bxc4 {[%clk 0:03:04]}  bxc4 {[%clk 0:02:49]} 11. e5 {[%clk 0:03:04]}  Rb8 {[%clk 0:02:47]} 12. Ne4 {[%clk 0:03:04]}  Nh6 {[%clk 0:02:44]} 13. c3 {[%clk 0:03:04]}  Nf5 {[%clk 0:02:43]} 14. Nxf5 {[%clk 0:03:04]}  exf5 {[%clk 0:02:44]} 15. Nd6+ {[%clk 0:03:04]}  Bxd6 {[%clk 0:02:42]} 16. exd6 {[%clk 0:03:05]}  Qb7 {[%clk 0:02:29]} 17. Bd4 {[%clk 0:03:05]}  O-O {[%clk 0:02:28]} 18. g4 {[%clk 0:03:06]}  fxg4 {[%clk 0:02:17]} 19. Rhg1 {[%clk 0:03:06]}  f6 {[%clk 0:01:21]} 20. Rxg4 {[%clk 0:03:06]}  Qd5 {[%clk 0:01:05]} 21. Rdg1 {[%clk 0:03:06]}  g6 {[%clk 0:01:02]} 22. h4 {[%clk 0:03:06]}  Bb7 {[%clk 0:00:50]} 23. Qh2 {[%clk 0:03:06]}  Qh5 {[%clk 0:00:45]} 24. f5 {[%clk 0:03:06]}  Bf3 {[%clk 0:00:34]} 25. R4g3 {[%clk 0:03:05]}  Be4 {[%clk 0:00:34]} 26. fxg6 {[%clk 0:03:03]}  Bxg6 {[%clk 0:00:33]} 27. Qg2 {[%clk 0:03:01]}  Rbe8 {[%clk 0:00:25]} 28. Qf1 {[%clk 0:02:59]}  Re4 {[%clk 0:00:18]} 29. Qxc4+ {[%clk 0:02:58]}  Kg7 {[%clk 0:00:15]} 30. b3 {[%clk 0:02:58]}  Rxh4 {[%clk 0:00:12]} 31. Kb2 {[%clk 0:02:58]}  Rh2+ {[%clk 0:00:11]} 32. Ka3 {[%clk 0:02:59]}  Rh3 {[%clk 0:00:10]} 33. Qc7 {[%clk 0:03:00]}  Rxg3 {[%clk 0:00:10]} 34. Qxd7+ {[%clk 0:03:00]}  Rf7 {[%clk 0:00:10]} 35. Qe8 {[%clk 0:03:00]}  Rxg1 {[%clk 0:00:10]} 36. d7 {[%clk 0:03:00]}  Qa5+ {[%clk 0:00:04]} 37. Kb2 {[%clk 0:03:00]}  Rg2+ {[%clk 0:00:05]} 38. Kc1 {[%clk 0:03:00]}  Qxa2 {[%clk 0:00:05]} 39. Qxf7+ {[%clk 0:03:00]}  Bxf7 {[%clk 0:00:04]} 40. d8=Q {[%clk 0:03:01]}  Qc2# {[%clk 0:00:03]} 0-1


[Site "https://www.chess.com"]

[Event "Titled Tuesday Blitz June 27 Early 2023"]
[White "Tikhonov, Viacheslav"]
[Black "Ruge, Edison"]
[WhiteFideId "44196407"]
[BlackFideId "4401000"]
[WhiteElo "2457"]
[BlackElo "2231"]
[Result "1-0"]
[Round "11"]
[TimeControl "180+2"]
[Date "2023.06.27"]
[WhiteClock "0:00:05"]
[BlackClock "0:00:03"]
[Board "98"]

1. e4 {[%clk 0:03:00]}  e5 {[%clk 0:02:58]} 2. Nf3 {[%clk 0:03:00]}  Nc6 {[%clk 0:02:59]} 3. Bc4 {[%clk 0:03:00]}  Be7 {[%clk 0:02:59]} 4. d4 {[%clk 0:02:57]}  d6 {[%clk 0:02:58]} 5. O-O {[%clk 0:02:56]}  Nf6 {[%clk 0:02:57]} 6. Nc3 {[%clk 0:02:54]}  Bg4 {[%clk 0:02:54]} 7. dxe5 {[%clk 0:02:49]}  dxe5 {[%clk 0:02:52]} 8. Bb5 {[%clk 0:02:42]}  Qxd1 {[%clk 0:02:49]} 9. Rxd1 {[%clk 0:02:41]}  Bxf3 {[%clk 0:02:50]} 10. gxf3 {[%clk 0:02:41]}  O-O {[%clk 0:02:48]} 11. Be3 {[%clk 0:02:38]}  Nb8 {[%clk 0:02:14]} 12. Nd5 {[%clk 0:02:21]}  Bd8 {[%clk 0:02:12]} 13. Nxf6+ {[%clk 0:02:10]}  Bxf6 {[%clk 0:02:10]} 14. Bc5 {[%clk 0:02:09]}  Rc8 {[%clk 0:02:07]} 15. Bd7 {[%clk 0:02:08]}  Nxd7 {[%clk 0:02:06]} 16. Rxd7 {[%clk 0:02:09]}  b6 {[%clk 0:01:43]} 17. Be3 {[%clk 0:02:07]}  Kf8 {[%clk 0:01:39]} 18. a4 {[%clk 0:02:04]}  a6 {[%clk 0:01:32]} 19. Rad1 {[%clk 0:01:57]}  Ke8 {[%clk 0:01:31]} 20. b3 {[%clk 0:01:54]}  Be7 {[%clk 0:01:30]} 21. R7d5 {[%clk 0:01:24]}  Rd8 {[%clk 0:01:24]} 22. c4 {[%clk 0:01:21]}  f6 {[%clk 0:01:14]} 23. h3 {[%clk 0:01:17]}  c6 {[%clk 0:00:54]} 24. Rxd8+ {[%clk 0:01:02]}  Rxd8 {[%clk 0:00:54]} 25. Ra1 {[%clk 0:01:03]}  Rd3 {[%clk 0:00:48]} 26. Rb1 {[%clk 0:00:40]}  Bd8 {[%clk 0:00:44]} 27. Kf1 {[%clk 0:00:37]}  Ke7 {[%clk 0:00:43]} 28. Ke2 {[%clk 0:00:37]}  Rd7 {[%clk 0:00:43]} 29. a5 {[%clk 0:00:34]}  bxa5 {[%clk 0:00:40]} 30. Bd2 {[%clk 0:00:30]}  Rb7 {[%clk 0:00:39]} 31. Kd3 {[%clk 0:00:25]}  c5 {[%clk 0:00:32]} 32. Kc2 {[%clk 0:00:24]}  g6 {[%clk 0:00:25]} 33. Ra1 {[%clk 0:00:22]}  Kd7 {[%clk 0:00:18]} 34. Bxa5 {[%clk 0:00:22]}  Be7 {[%clk 0:00:17]} 35. Bd2 {[%clk 0:00:21]}  Ra7 {[%clk 0:00:17]} 36. Be3 {[%clk 0:00:17]}  Kc6 {[%clk 0:00:17]} 37. Kc3 {[%clk 0:00:17]}  Ra8 {[%clk 0:00:16]} 38. Ra4 {[%clk 0:00:14]}  a5 {[%clk 0:00:16]} 39. Bd2 {[%clk 0:00:15]}  Bd8 {[%clk 0:00:16]} 40. Kc2 {[%clk 0:00:15]}  Bb6 {[%clk 0:00:17]} 41. Ra1 {[%clk 0:00:15]}  Kb7 {[%clk 0:00:16]} 42. h4 {[%clk 0:00:15]}  Kc6 {[%clk 0:00:17]} 43. h5 {[%clk 0:00:15]}  g5 {[%clk 0:00:17]} 44. Bc3 {[%clk 0:00:07]}  Kb7 {[%clk 0:00:18]} 45. f4 {[%clk 0:00:06]}  Re8 {[%clk 0:00:13]} 46. fxg5 {[%clk 0:00:05]}  fxg5 {[%clk 0:00:13]} 47. Rg1 {[%clk 0:00:06]}  h6 {[%clk 0:00:14]} 48. Rg3 {[%clk 0:00:05]}  Bc7 {[%clk 0:00:14]} 49. Rf3 {[%clk 0:00:05]}  Re6 {[%clk 0:00:13]} 50. Rf5 {[%clk 0:00:06]}  Kc6 {[%clk 0:00:13]} 51. Bd2 {[%clk 0:00:05]}  Kd6 {[%clk 0:00:14]} 52. Be3 {[%clk 0:00:06]}  Kc6 {[%clk 0:00:13]} 53. Rf8 {[%clk 0:00:06]}  Kd6 {[%clk 0:00:12]} 54. Rg8 {[%clk 0:00:06]}  Kc6 {[%clk 0:00:11]} 55. Rg6 {[%clk 0:00:06]}  Kd6 {[%clk 0:00:12]} 56. Rg8 {[%clk 0:00:06]}  Ke7 {[%clk 0:00:11]} 57. Bxc5+ {[%clk 0:00:06]}  Kf7 {[%clk 0:00:11]} 58. Rc8 {[%clk 0:00:06]}  Rc6 {[%clk 0:00:08]} 59. Be3 {[%clk 0:00:07]}  Ke6 {[%clk 0:00:07]} 60. Rh8 {[%clk 0:00:05]}  Kf7 {[%clk 0:00:08]} 61. Rh7+ {[%clk 0:00:04]}  Kg8 {[%clk 0:00:08]} 62. Rd7 {[%clk 0:00:05]}  Bb6 {[%clk 0:00:07]} 63. Rd5 {[%clk 0:00:06]}  Bxe3 {[%clk 0:00:07]} 64. fxe3 {[%clk 0:00:07]}  Rf6 {[%clk 0:00:06]} 65. Rxe5 {[%clk 0:00:07]}  Rf2+ {[%clk 0:00:07]} 66. Kd3 {[%clk 0:00:07]}  Rb2 {[%clk 0:00:07]} 67. Kc3 {[%clk 0:00:07]}  Rh2 {[%clk 0:00:06]} 68. Rxa5 {[%clk 0:00:07]}  Rxh5 {[%clk 0:00:07]} 69. b4 {[%clk 0:00:07]}  Rh3 {[%clk 0:00:07]} 70. Kd4 {[%clk 0:00:08]}  g4 {[%clk 0:00:06]} 71. b5 {[%clk 0:00:06]}  g3 {[%clk 0:00:07]} 72. Ra1 {[%clk 0:00:06]}  g2 {[%clk 0:00:07]} 73. Rg1 {[%clk 0:00:05]}  Rg3 {[%clk 0:00:08]} 74. b6 {[%clk 0:00:06]}  Rg7 {[%clk 0:00:06]} 75. c5 {[%clk 0:00:05]}  h5 {[%clk 0:00:07]} 76. c6 {[%clk 0:00:05]}  h4 {[%clk 0:00:07]} 77. b7 {[%clk 0:00:05]}  h3 {[%clk 0:00:08]} 78. b8=Q+ {[%clk 0:00:04]}  Kh7 {[%clk 0:00:03]} 79. Qh2 {[%clk 0:00:05]} 1-0


[Site "https://www.chess.com"]

[Event "Titled Tuesday Blitz June 27 Early 2023"]
[White "Samarth J Rao"]
[Black "Eidelman, Gabriel"]
[WhiteFideId "46652370"]
[BlackFideId "30910544"]
[WhiteElo "2215"]
[BlackElo "2438"]
[Result "1/2-1/2"]
[Round "11"]
[TimeControl "180+2"]
[Date "2023.06.27"]
[WhiteClock "0:00:15"]
[BlackClock "0:00:01"]
[Board "99"]

1. d4 {[%clk 0:03:00]}  Nf6 {[%clk 0:02:55]} 2. Nf3 {[%clk 0:02:58]}  g6 {[%clk 0:02:53]} 3. e3 {[%clk 0:02:58]}  Bg7 {[%clk 0:02:53]} 4. Bd3 {[%clk 0:02:59]}  O-O {[%clk 0:02:53]} 5. O-O {[%clk 0:02:57]}  d6 {[%clk 0:02:50]} 6. b3 {[%clk 0:02:57]}  e5 {[%clk 0:02:38]} 7. Nbd2 {[%clk 0:02:47]}  Re8 {[%clk 0:02:34]} 8. dxe5 {[%clk 0:02:39]}  dxe5 {[%clk 0:02:33]} 9. Ne4 {[%clk 0:02:01]}  Nc6 {[%clk 0:02:17]} 10. Bb2 {[%clk 0:01:58]}  Bf5 {[%clk 0:02:09]} 11. Nxf6+ {[%clk 0:01:57]}  Qxf6 {[%clk 0:02:10]} 12. Bxf5 {[%clk 0:01:56]}  Qxf5 {[%clk 0:02:11]} 13. Ne1 {[%clk 0:01:30]}  e4 {[%clk 0:02:04]} 14. Bxg7 {[%clk 0:01:27]}  Kxg7 {[%clk 0:02:05]} 15. Qe2 {[%clk 0:01:20]}  Rad8 {[%clk 0:02:03]} 16. Rd1 {[%clk 0:01:06]}  Rxd1 {[%clk 0:01:56]} 17. Qxd1 {[%clk 0:01:07]}  Rd8 {[%clk 0:01:56]} 18. Qe2 {[%clk 0:01:07]}  Qd5 {[%clk 0:01:42]} 19. f3 {[%clk 0:01:06]}  Qd2 {[%clk 0:01:10]} 20. Rf2 {[%clk 0:01:05]}  Qxe2 {[%clk 0:00:50]} 21. Rxe2 {[%clk 0:01:06]}  Kf6 {[%clk 0:00:50]} 22. Kf2 {[%clk 0:01:01]}  Ke5 {[%clk 0:00:48]} 23. f4+ {[%clk 0:00:57]}  Kf5 {[%clk 0:00:39]} 24. h3 {[%clk 0:00:56]}  h5 {[%clk 0:00:38]} 25. g3 {[%clk 0:00:50]}  Nb4 {[%clk 0:00:36]} 26. a3 {[%clk 0:00:50]}  Na2 {[%clk 0:00:22]} 27. c4 {[%clk 0:00:48]}  Nc1 {[%clk 0:00:22]} 28. Rb2 {[%clk 0:00:39]}  Nd3+ {[%clk 0:00:18]} 29. Nxd3 {[%clk 0:00:36]}  Rxd3 {[%clk 0:00:19]} 30. Ke2 {[%clk 0:00:35]}  Ke6 {[%clk 0:00:09]} 31. a4 {[%clk 0:00:33]}  a5 {[%clk 0:00:05]} 32. Rb1 {[%clk 0:00:31]}  c5 {[%clk 0:00:04]} 33. Rb2 {[%clk 0:00:31]}  f6 {[%clk 0:00:03]} 34. Rb1 {[%clk 0:00:31]}  g5 {[%clk 0:00:04]} 35. Rb2 {[%clk 0:00:30]}  h4 {[%clk 0:00:04]} 36. fxg5 {[%clk 0:00:26]}  hxg3 {[%clk 0:00:02]} 37. gxf6 {[%clk 0:00:24]}  Kxf6 {[%clk 0:00:03]} 38. Kf1 {[%clk 0:00:18]}  Rxe3 {[%clk 0:00:02]} 39. Kg2 {[%clk 0:00:19]}  Kg5 {[%clk 0:00:02]} 40. Rd2 {[%clk 0:00:17]}  Rxb3 {[%clk 0:00:01]} 41. Rd8 {[%clk 0:00:14]}  Kf4 {[%clk 0:00:02]} 42. Rf8+ {[%clk 0:00:14]}  Ke3 {[%clk 0:00:02]} 43. Kxg3 {[%clk 0:00:14]}  Rb4 {[%clk 0:00:03]} 44. h4 {[%clk 0:00:13]}  Rxc4 {[%clk 0:00:04]} 45. h5 {[%clk 0:00:14]}  Rxa4 {[%clk 0:00:04]} 46. h6 {[%clk 0:00:14]}  Ra1 {[%clk 0:00:04]} 47. Kg2 {[%clk 0:00:14]}  Ra2+ {[%clk 0:00:03]} 48. Kg3 {[%clk 0:00:15]}  Ra1 {[%clk 0:00:03]} 49. Kg2 {[%clk 0:00:15]}  Ra2+ {[%clk 0:00:02]} 50. Kg3 {[%clk 0:00:15]}  Ra1 {[%clk 0:00:01]} 1/2-1/2


[Site "https://www.chess.com"]

[Event "Titled Tuesday Blitz June 27 Early 2023"]
[White "Begunov, Konstantin"]
[Black "Adireddy Arjun"]
[WhiteFideId "4118510"]
[BlackFideId "25647709"]
[WhiteElo "2433"]
[BlackElo "2340"]
[Result "0-1"]
[Round "11"]
[TimeControl "180+2"]
[Date "2023.06.27"]
[WhiteClock "0:00:12"]
[BlackClock "0:00:11"]
[Board "100"]

1. d4 {[%clk 0:02:55]}  d5 {[%clk 0:02:58]} 2. c4 {[%clk 0:02:55]}  c6 {[%clk 0:02:58]} 3. Nc3 {[%clk 0:02:56]}  Nf6 {[%clk 0:02:57]} 4. Nf3 {[%clk 0:02:56]}  e6 {[%clk 0:02:58]} 5. cxd5 {[%clk 0:02:56]}  exd5 {[%clk 0:02:57]} 6. Bg5 {[%clk 0:02:56]}  Be7 {[%clk 0:02:58]} 7. Qc2 {[%clk 0:02:56]}  O-O {[%clk 0:02:58]} 8. e3 {[%clk 0:02:57]}  h6 {[%clk 0:02:58]} 9. Bh4 {[%clk 0:02:56]}  Re8 {[%clk 0:02:57]} 10. Bd3 {[%clk 0:02:57]}  a5 {[%clk 0:02:42]} 11. O-O {[%clk 0:02:56]}  b5 {[%clk 0:02:39]} 12. a4 {[%clk 0:02:52]}  b4 {[%clk 0:02:38]} 13. Ne2 {[%clk 0:02:51]}  Ba6 {[%clk 0:02:31]} 14. Bxa6 {[%clk 0:02:47]}  Rxa6 {[%clk 0:02:32]} 15. Nc1 {[%clk 0:02:47]}  Nbd7 {[%clk 0:02:26]} 16. Nb3 {[%clk 0:02:46]}  Ne4 {[%clk 0:02:24]} 17. Bxe7 {[%clk 0:02:44]}  Qxe7 {[%clk 0:02:25]} 18. Rfc1 {[%clk 0:02:37]}  Rc8 {[%clk 0:02:24]} 19. Ne1 {[%clk 0:02:27]}  c5 {[%clk 0:02:13]} 20. dxc5 {[%clk 0:02:26]}  Ndxc5 {[%clk 0:02:14]} 21. Nd3 {[%clk 0:02:05]}  Rac6 {[%clk 0:02:07]} 22. Nxa5 {[%clk 0:01:59]}  R6c7 {[%clk 0:01:54]} 23. Nxc5 {[%clk 0:01:11]}  Rxc5 {[%clk 0:01:50]} 24. Qd1 {[%clk 0:01:11]}  Qf6 {[%clk 0:01:45]} 25. f3 {[%clk 0:00:59]}  Qxb2 {[%clk 0:01:43]} 26. Rxc5 {[%clk 0:00:20]}  Qf2+ {[%clk 0:01:27]} 27. Kh1 {[%clk 0:00:19]}  Nxc5 {[%clk 0:01:28]} 28. Qxd5 {[%clk 0:00:14]}  Qxe3 {[%clk 0:01:27]} 29. Nc6 {[%clk 0:00:13]}  Nxa4 {[%clk 0:01:17]} 30. h3 {[%clk 0:00:09]}  Nb6 {[%clk 0:01:03]} 31. Qd6 {[%clk 0:00:06]}  Qc3 {[%clk 0:00:35]} 32. Ne7+ {[%clk 0:00:05]}  Kh7 {[%clk 0:00:25]} 33. Rd1 {[%clk 0:00:05]}  Re8 {[%clk 0:00:14]} 34. Nf5 {[%clk 0:00:04]}  Nc4 {[%clk 0:00:12]} 35. Qd7 {[%clk 0:00:04]}  Re1+ {[%clk 0:00:10]} 36. Rxe1 {[%clk 0:00:04]}  Qxe1+ {[%clk 0:00:11]} 37. Kh2 {[%clk 0:00:04]}  Qe5+ {[%clk 0:00:11]} 38. g3 {[%clk 0:00:04]}  b3 {[%clk 0:00:08]} 39. Qd3 {[%clk 0:00:02]}  Nb2 {[%clk 0:00:03]} 40. Qb1 {[%clk 0:00:01]}  Qe2+ {[%clk 0:00:03]} 41. Kh1 {[%clk 0:00:01]}  Qxf3+ {[%clk 0:00:03]} 42. Kh2 {[%clk 0:00:02]}  Nd3 {[%clk 0:00:03]} 43. Nd4 {[%clk 0:00:01]}  Qf2+ {[%clk 0:00:03]} 44. Kh1 {[%clk 0:00:02]}  Qxd4 {[%clk 0:00:04]} 45. Kg2 {[%clk 0:00:01]}  Qf2+ {[%clk 0:00:04]} 46. Kh1 {[%clk 0:00:02]}  Qf3+ {[%clk 0:00:04]} 47. Kh2 {[%clk 0:00:02]}  b2 {[%clk 0:00:04]} 48. h4 {[%clk 0:00:03]}  Qe2+ {[%clk 0:00:04]} 49. Kh3 {[%clk 0:00:03]}  Qd2 {[%clk 0:00:04]} 50. h5 {[%clk 0:00:04]}  g6 {[%clk 0:00:03]} 51. hxg6+ {[%clk 0:00:04]}  fxg6 {[%clk 0:00:04]} 52. g4 {[%clk 0:00:05]}  Nf2+ {[%clk 0:00:03]} 53. Kg3 {[%clk 0:00:04]}  Qe3+ {[%clk 0:00:04]} 54. Kg2 {[%clk 0:00:04]}  Nxg4 {[%clk 0:00:03]} 55. Qxb2 {[%clk 0:00:04]}  Qf2+ {[%clk 0:00:03]} 56. Qxf2 {[%clk 0:00:04]}  Nxf2 {[%clk 0:00:04]} 57. Kxf2 {[%clk 0:00:05]}  h5 {[%clk 0:00:05]} 58. Kg3 {[%clk 0:00:06]}  Kh6 {[%clk 0:00:06]} 59. Kh4 {[%clk 0:00:07]}  g5+ {[%clk 0:00:07]} 60. Kg3 {[%clk 0:00:08]}  h4+ {[%clk 0:00:07]} 61. Kf3 {[%clk 0:00:08]}  Kh5 {[%clk 0:00:08]} 62. Kg2 {[%clk 0:00:09]}  g4 {[%clk 0:00:09]} 63. Kh2 {[%clk 0:00:10]}  h3 {[%clk 0:00:09]} 64. Kg3 {[%clk 0:00:10]}  Kg5 {[%clk 0:00:10]} 65. Kh2 {[%clk 0:00:10]}  Kf4 {[%clk 0:00:11]} 66. Kg1 {[%clk 0:00:11]}  Kg3 {[%clk 0:00:10]} 67. Kh1 {[%clk 0:00:11]}  Kf2 {[%clk 0:00:08]} 68. Kh2 {[%clk 0:00:11]}  g3+ {[%clk 0:00:09]} 69. Kh1 {[%clk 0:00:11]}  g2+ {[%clk 0:00:10]} 70. Kh2 {[%clk 0:00:12]}  g1=Q+ {[%clk 0:00:10]} 71. Kxh3 {[%clk 0:00:12]}  Qg3# {[%clk 0:00:11]} 0-1


[Site "https://www.chess.com"]

[Event "Titled Tuesday Blitz June 27 Early 2023"]
[White "Andreev, Konstantin"]
[Black "le-castor-faineant"]
[WhiteFideId "24239305"]
[WhiteElo "2426"]
[BlackElo "2173"]
[Result "1-0"]
[Round "11"]
[TimeControl "180+2"]
[Date "2023.06.27"]
[WhiteClock "0:00:49"]
[BlackClock "0:00:55"]
[Board "101"]

1. e4 {[%clk 0:03:00]}  e5 {[%clk 0:02:59]} 2. Nf3 {[%clk 0:02:59]}  Nf6 {[%clk 0:02:59]} 3. d4 {[%clk 0:02:59]}  Nxe4 {[%clk 0:02:58]} 4. Bd3 {[%clk 0:02:59]}  d5 {[%clk 0:02:56]} 5. Nxe5 {[%clk 0:02:56]}  Bd6 {[%clk 0:02:55]} 6. c4 {[%clk 0:02:56]}  c6 {[%clk 0:02:55]} 7. O-O {[%clk 0:02:55]}  O-O {[%clk 0:02:54]} 8. cxd5 {[%clk 0:02:25]}  cxd5 {[%clk 0:02:54]} 9. Nd2 {[%clk 0:02:26]}  Nd7 {[%clk 0:02:40]} 10. Nxd7 {[%clk 0:02:21]}  Nxd2 {[%clk 0:02:38]} 11. Nxf8 {[%clk 0:02:01]}  Nxf1 {[%clk 0:02:37]} 12. Qh5 {[%clk 0:01:46]}  Kxf8 {[%clk 0:02:31]} 13. Qxh7 {[%clk 0:01:45]}  Qf6 {[%clk 0:01:55]} 14. Kxf1 {[%clk 0:01:40]}  Rb8 {[%clk 0:01:38]} 15. Bd2 {[%clk 0:01:26]}  Be6 {[%clk 0:01:31]} 16. Rd1 {[%clk 0:01:02]}  Rc8 {[%clk 0:01:13]} 17. h4 {[%clk 0:00:56]}  Ke8 {[%clk 0:01:10]} 18. Bg5 {[%clk 0:00:51]}  Qxd4 {[%clk 0:00:55]} 19. Bb5+ {[%clk 0:00:49]} 1-0


[Site "https://www.chess.com"]

[Event "Titled Tuesday Blitz June 27 Early 2023"]
[White "kuanysh1981"]
[Black "Tarasova, Viktoriya"]
[BlackFideId "4175840"]
[WhiteElo "2497"]
[BlackElo "2356"]
[Result "1/2-1/2"]
[Round "11"]
[TimeControl "180+2"]
[Date "2023.06.27"]
[WhiteClock "0:00:04"]
[BlackClock "0:00:20"]
[Board "104"]

1. e4 {[%clk 0:03:00]}  e5 {[%clk 0:02:58]} 2. Bc4 {[%clk 0:03:00]}  c6 {[%clk 0:02:57]} 3. Nf3 {[%clk 0:02:58]}  Qc7 {[%clk 0:02:49]} 4. O-O {[%clk 0:02:56]}  Nf6 {[%clk 0:02:49]} 5. d4 {[%clk 0:02:56]}  d6 {[%clk 0:02:48]} 6. dxe5 {[%clk 0:02:48]}  dxe5 {[%clk 0:02:48]} 7. Ng5 {[%clk 0:02:48]}  Bg4 {[%clk 0:02:37]} 8. Bxf7+ {[%clk 0:01:49]}  Qxf7 {[%clk 0:02:24]} 9. f3 {[%clk 0:01:49]}  Qd7 {[%clk 0:02:18]} 10. fxg4 {[%clk 0:01:47]}  Qxd1 {[%clk 0:02:16]} 11. Rxd1 {[%clk 0:01:46]}  Nxg4 {[%clk 0:02:16]} 12. Ne6 {[%clk 0:01:39]}  Na6 {[%clk 0:02:02]} 13. h3 {[%clk 0:01:34]}  Nf6 {[%clk 0:02:00]} 14. Nc3 {[%clk 0:01:33]}  Bc5+ {[%clk 0:01:56]} 15. Nxc5 {[%clk 0:01:32]}  Nxc5 {[%clk 0:01:56]} 16. b4 {[%clk 0:01:14]}  Ncxe4 {[%clk 0:01:54]} 17. Nxe4 {[%clk 0:01:15]}  Nxe4 {[%clk 0:01:55]} 18. Re1 {[%clk 0:01:16]}  Nf6 {[%clk 0:01:54]} 19. Bb2 {[%clk 0:01:13]}  Kf7 {[%clk 0:01:54]} 20. Bxe5 {[%clk 0:01:13]}  Rhe8 {[%clk 0:01:48]} 21. c4 {[%clk 0:01:12]}  Re6 {[%clk 0:01:47]} 22. Bxf6 {[%clk 0:01:11]}  Rxe1+ {[%clk 0:01:43]} 23. Rxe1 {[%clk 0:01:10]}  Kxf6 {[%clk 0:01:44]} 24. Rd1 {[%clk 0:01:06]}  Ke7 {[%clk 0:01:43]} 25. Kf2 {[%clk 0:01:03]}  a5 {[%clk 0:01:41]} 26. b5 {[%clk 0:01:02]}  cxb5 {[%clk 0:01:40]} 27. cxb5 {[%clk 0:01:03]}  Rc8 {[%clk 0:01:40]} 28. Rd2 {[%clk 0:00:29]}  a4 {[%clk 0:01:32]} 29. Ke3 {[%clk 0:00:29]}  Rc5 {[%clk 0:01:28]} 30. Rb2 {[%clk 0:00:29]}  Rc4 {[%clk 0:01:24]} 31. Kd3 {[%clk 0:00:28]}  Rf4 {[%clk 0:01:24]} 32. Rc2 {[%clk 0:00:21]}  Kd6 {[%clk 0:01:23]} 33. Re2 {[%clk 0:00:13]}  Rb4 {[%clk 0:01:21]} 34. Rf2 {[%clk 0:00:13]}  Rxb5 {[%clk 0:01:19]} 35. Rf7 {[%clk 0:00:13]}  Rg5 {[%clk 0:00:40]} 36. g4 {[%clk 0:00:12]}  b5 {[%clk 0:00:39]} 37. Kc3 {[%clk 0:00:12]}  h5 {[%clk 0:00:33]} 38. gxh5 {[%clk 0:00:12]}  Rxh5 {[%clk 0:00:32]} 39. Rxg7 {[%clk 0:00:10]}  Rxh3+ {[%clk 0:00:31]} 40. Kb4 {[%clk 0:00:10]}  Rh5 {[%clk 0:00:28]} 41. Rg6+ {[%clk 0:00:10]}  Kc7 {[%clk 0:00:26]} 42. Ka5 {[%clk 0:00:10]}  Rf5 {[%clk 0:00:23]} 43. Rh6 {[%clk 0:00:09]}  Rg5 {[%clk 0:00:22]} 44. Rf6 {[%clk 0:00:09]}  Rh5 {[%clk 0:00:22]} 45. Rg6 {[%clk 0:00:07]}  Rh2 {[%clk 0:00:20]} 46. Kxb5 {[%clk 0:00:06]}  Rxa2 {[%clk 0:00:20]} 47. Ra6 {[%clk 0:00:05]}  a3 {[%clk 0:00:20]} 48. Kb4 {[%clk 0:00:05]}  Ra1 {[%clk 0:00:20]} 49. Rxa3 {[%clk 0:00:04]}  Rxa3 {[%clk 0:00:20]} 50. Kxa3 {[%clk 0:00:04]} 1/2-1/2


[Site "https://www.chess.com"]